bitfinex-derivatives/quotes_ETHF0:USTF0_20240910
["timestamp","ask_amount","ask_price","bid_price","bid_amount"]
[1725933402277,0.3678,2343.1,2342.9,0.3794]
[1725933402480,0.3678,2343.1,2342.9,0.80615]
[1725933402887,0.7418,2343.3,2343.1,0.42671]
[1725933403185,0.7454,2343.5,2343.2,2.66]
[1725933403481,0.7454,2343.5,2343.2,3.08669]
[1725933403686,0.7454,2343.5,2343.3,0.42668]
[1725933403887,0.7454,2343.5,2343.2,3.08669]
[1725933404780,0.7454,2343.5,2343.0,3.46492]
[1725933404975,0.7454,2343.5,2343.1,0.42671]
[1725933405785,0.7454,2343.5,2343.2,0.42669]
[1725933406700,0.7454,2343.5,2343.1,0.4267]
[1725933407485,0.7454,2343.5,2343.2,0.4267]
[1725933409182,0.7454,2343.5,2343.0,3.0382]
[1725933409493,0.7454,2343.5,2343.2,0.42669]
[1725933410191,1.17205,2343.5,2343.2,0.42669]
[1725933411683,0.42666,2343.4,2343.2,0.42669]
[1725933411887,0.3924,2343.3,2343.2,0.42669]
[1725933412088,0.79445,2343.5,2343.3,0.42668]
[1725933412785,0.3678,2343.5,2343.0,3.0382]
[1725933412994,0.79445,2343.5,2343.3,0.42667]
[1725933413793,0.3678,2343.5,2343.3,0.42667]
[1725933413995,0.79445,2343.5,2343.3,0.42667]
[1725933416299,0.79445,2343.5,2343.3,0.82717]
[1725933418794,0.79445,2343.5,2343.3,0.42667]
[1725933419295,0.79445,2343.5,2343.2,2.66]
[1725933419296,0.79445,2343.5,2343.4,0.42666]
[1725933419891,0.3678,2343.5,2343.3,0.42667]
[1725933420194,0.79445,2343.5,2343.3,0.42667]
[1725933420396,0.79445,2343.5,2343.4,0.42666]
[1725933420787,0.42667,2343.4,2343.3,0.42667]
[1725933420991,0.3678,2343.5,2343.4,0.42666]
[1725933420992,0.79446,2343.5,2343.4,0.42666]
[1725933421393,0.3678,2343.5,2343.4,0.42666]
[1725933422997,0.79444,2343.5,2343.4,0.42666]
[1725933424392,0.42666,2343.4,2343.3,0.42667]
[1725933424593,0.79446,2343.5,2343.4,0.42666]
[1725933425190,0.3678,2343.5,2343.4,0.42666]
[1725933426092,0.79444,2343.5,2343.4,0.42666]
[1725933427091,0.79444,2343.5,2343.3,0.79577]
[1725933428192,0.79444,2343.5,2343.3,0.3691]
[1725933428400,0.79444,2343.5,2343.3,0.79576]
[1725933428801,0.3678,2343.5,2343.4,0.42666]
[1725933429103,0.3678,2343.5,2343.4,1.20666]
[1725933430098,0.3678,2343.5,2343.4,2.43666]
[1725933430496,0.78,2343.7,2343.6,0.42662]
[1725933430698,0.4007,2343.8,2343.7,0.42661]
[1725933430896,0.4007,2343.8,2343.7,0.79491]
[1725933431196,0.4007,2343.8,2343.7,41.59491]
[1725933432098,0.82729,2343.8,2343.7,41.1683]
[1725933432298,0.82729,2343.8,2343.7,40.8]
[1725933432598,0.4267,2343.3,2343.0,2.66]
[1725933432803,0.8001,2343.2,2343.1,0.42672]
[1725933434297,0.42665,2343.5,2343.0,2.66]
[1725933434497,0.42665,2343.5,2343.3,0.42667]
[1725933435001,0.42665,2343.5,2343.3,1.19687]
[1725933435803,0.42666,2343.5,2343.3,1.19687]
[1725933436097,0.42666,2343.5,2343.2,2.66]
[1725933436098,0.42668,2343.3,2343.2,0.42668]
[1725933436497,0.42668,2343.4,2343.0,3.037]
[1725933436814,0.42668,2343.4,2343.2,0.42668]
[1725933436993,0.42668,2343.4,2343.3,0.42668]
[1725933437196,3.18575069,2343.4,2343.3,0.42668]
[1725933438105,0.42668,2343.4,2343.3,0.42668]
[1725933444405,3.18575069,2343.4,2343.3,0.42668]
[1725933445098,4.29799095,2343.4,2343.3,0.42668]
[1725933446504,0.42668,2343.4,2343.3,0.42668]
[1725933446706,4.31332265,2343.4,2343.3,0.42668]
[1725933447302,0.42669,2343.3,2343.2,0.42668]
[1725933447500,4.31496166,2343.3,2343.2,0.42668]
[1725933448710,0.42669,2343.3,2343.2,0.42669]
[1725933449010,4.68358886,2343.3,2343.2,0.42669]
[1725933449310,4.31485396,2343.3,2343.2,0.42669]
[1725933449608,4.31484396,2343.3,2343.2,0.42669]
[1725933450702,4.31485396,2343.3,2343.1,0.4267]
[1725933451013,4.31485396,2343.3,2343.0,3.037]
[1725933451014,4.31485396,2343.3,2343.2,0.7994]
[1725933451211,3.88816396,2343.3,2343.2,0.7994]
[1725933451407,4.31483396,2343.4,2343.3,0.42668]
[1725933451712,0.42667,2343.4,2343.3,0.42668]
[1725933452014,3.88873382,2343.4,2343.3,0.82368]
[1725933452205,3.3336891,2343.4,2343.3,0.82368]
[1725933452416,3.3336891,2343.5,2343.4,0.42666]
[1725933452602,3.76014121,2343.5,2343.4,0.3791]
[1725933452914,3.58094369,2343.5,2343.3,0.82368]
[1725933453117,0.80314,2343.5,2343.3,0.82368]
[1725933453411,3.58094369,2343.5,2343.3,0.82368]
[1725933453606,0.80314,2343.5,2343.3,0.82368]
[1725933453820,0.80314,2343.5,2343.4,0.42666]
[1725933454006,0.3765,2343.5,2343.4,0.42666]
[1725933454416,3.15430369,2343.5,2343.4,0.42666]
[1725933454811,0.3765,2343.5,2343.4,0.42666]
[1725933455020,3.15430369,2343.5,2343.4,0.42666]
[1725933455211,0.3765,2343.5,2343.4,0.42666]
[1725933456112,0.80315,2343.5,2343.3,1.627]
[1725933456316,0.80314,2343.5,2343.4,0.42666]
[1725933456616,0.3765,2343.5,2343.4,0.42666]
[1725933458410,1.20574,2343.6,2343.5,0.42664]
[1725933459014,0.7791,2343.6,2343.5,0.42664]
[1725933459211,0.4001,2343.6,2343.5,0.42664]
[1725933459721,0.8113,2343.8,2343.6,0.42661]
[1725933459921,1.1909,2343.8,2343.6,2.04531]
[1725933460818,0.42661,2343.7,2343.6,1.6187]
[1725933461022,1.1909,2343.8,2343.6,0.3887]
[1725933462323,0.3796,2343.8,2343.6,1.6187]
[1725933462519,0.3796,2343.8,2343.7,0.79461]
[1725933463826,0.3796,2343.8,2343.7,0.368]
[1725933464616,0.3796,2343.8,2343.5,0.3918]
[1725933464816,0.3802,2343.7,2343.5,2.04844]
[1725933465019,0.8062,2343.8,2343.5,2.04844]
[1725933467023,0.8062,2343.8,2343.6,0.3688]
[1725933467223,0.8062,2343.8,2343.5,0.42664]
[1725933467424,0.42662,2343.7,2343.4,1.23]
[1725933467626,0.3796,2343.8,2343.5,1.23]
[1725933467627,0.80619,2343.8,2343.5,1.23]
[1725933467823,0.42661,2343.7,2343.5,0.42664]
[1725933468028,3.88892517,2343.6,2343.5,0.42664]
[1725933468325,4.84184432,2343.7,2343.5,0.42664]
[1725933468627,4.41523432,2343.7,2343.5,0.42664]
[1725933468918,3.88984502,2343.6,2343.5,0.79664]
[1725933469725,3.88984502,2343.6,2343.5,2.02664]
[1725933472325,3.33381415,2343.6,2343.5,7.36046]
[1725933472526,3.33381415,2343.7,2343.6,0.42662]
[1725933472729,3.88984502,2343.8,2343.7,0.42661]
[1725933472927,3.88984502,2343.8,2343.7,42.84011]
[1725933473830,3.88984502,2343.8,2343.7,47.10651]
[1725933474129,3.33396452,2343.8,2343.7,54.17303]
[1725933474427,3.88984502,2343.9,2343.8,1.49307]
[1725933474428,3.33396452,2343.9,2343.8,1.49307]
[1725933474623,3.33396452,2344.0,2343.9,0.42657]
[1725933474829,3.33396452,2344.0,2343.9,1.65657]
[1725933475025,0.099,2344.3,2344.2,0.42652]
[1725933475225,0.82629,2344.4,2344.2,1.65652]
[1725933476232,0.82629,2344.4,2344.2,0.42652]
[1725933476734,0.82629,2344.4,2344.1,3.0479]
[1725933476735,0.4265,2344.3,2344.1,3.47442]
[1725933478520,0.3882,2344.2,2344.1,3.47442]
[1725933481033,0.3882,2344.2,2344.1,3.08652]
[1725933481432,0.81472,2344.2,2344.1,3.08652]
[1725933481733,0.3882,2344.2,2344.1,3.08652]
[1725933482329,4.80343432,2344.2,2344.1,3.08652]
[1725933482627,9.38237293,2344.3,2344.2,0.42652]
[1725933482824,4.78743432,2344.3,2344.2,0.42652]
[1725933483020,4.41523432,2344.3,2344.2,0.42652]
[1725933483221,4.96713861,2344.5,2344.4,0.42648]
[1725933483426,4.41523432,2344.6,2344.5,0.42646]
[1725933484227,4.78743432,2344.7,2344.4,3.0622]
[1725933484435,3.88230497,2344.5,2344.4,3.48868]
[1725933485232,3.88230497,2344.5,2344.4,0.82868]
[1725933485426,0.42646,2344.5,2344.4,0.82868]
[1725933485827,4.30778133,2344.5,2344.4,0.82868]
[1725933486233,3.88132133,2344.5,2344.4,0.82868]
[1725933486732,5.23168432,2344.6,2344.4,0.82868]
[1725933487131,3.880628,2344.5,2344.4,0.82868]
[1725933489634,4.307088,2344.5,2344.4,0.4022]
[1725933490127,4.41523432,2344.6,2344.4,0.82868]
[1725933490128,4.84168432,2344.6,2344.4,0.82868]
[1725933490438,4.84168432,2344.6,2344.5,3.08646]
[1725933490439,0.42644,2344.6,2344.5,3.08646]
[1725933490740,0.3722,2344.7,2344.6,0.42644]
[1725933493534,0.79862,2344.7,2344.6,0.42644]
[1725933493730,0.3722,2344.7,2344.6,0.42644]
[1725933494631,0.79862,2344.7,2344.6,0.42644]
[1725933494830,0.42642,2344.8,2344.6,4.2648]
[1725933495041,0.3782,2344.7,2344.6,0.42644]
[1725933495343,0.3782,2344.7,2344.6,3.08644]
[1725933495540,0.3874,2344.9,2344.8,0.42641]
[1725933495926,0.42639,2344.9,2344.8,0.42641]
[1725933496332,0.42639,2344.9,2344.8,1.20751]
[1725933497043,0.72637,2345.0,2344.9,0.42639]
[1725933497245,0.3,2345.0,2344.9,0.42639]
[1725933497546,0.3,2345.0,2344.9,4.69119]
[1725933498237,0.3,2345.0,2344.9,0.42639]
[1725933498438,0.3,2345.0,2344.7,0.42641]
[1725933498639,0.7591,2344.9,2344.7,0.42642]
[1725933498845,0.42641,2344.8,2344.7,0.42642]
[1725933499141,0.42641,2344.8,2344.4,0.42647]
[1725933499142,0.42646,2344.6,2344.4,0.42647]
[1725933499445,0.3717,2344.5,2344.4,0.42647]
[1725933499858,0.3717,2344.5,2344.4,0.42648]
[1725933502143,0.746,2344.5,2344.4,0.42648]
[1725933502546,0.746,2344.5,2344.3,3.08649]
[1725933502732,0.746,2344.5,2344.1,3.08652]
[1725933502733,4.6338,2344.4,2344.1,3.08652]
[1725933502938,0.42651,2344.3,2344.2,0.42652]
[1725933503131,0.42651,2344.3,2344.1,3.08653]
[1725933503838,0.3682,2344.4,2344.1,3.08653]
[1725933504040,0.42651,2344.3,2344.1,3.08653]
[1725933504837,0.42652,2344.2,2344.1,2.66]
[1725933505144,3.75303713,2344.2,2344.0,0.42654]
[1725933505341,0.8025,2344.1,2344.0,0.42654]
[1725933505532,0.3992,2344.1,2344.0,0.42654]
[1725933506843,3.32650713,2344.2,2344.1,0.42653]
[1725933507045,3.32650713,2344.2,2344.1,3.46353]
[1725933507238,3.32650713,2344.3,2344.1,3.46353]
[1725933507433,3.32650713,2344.2,2344.1,3.46353]
[1725933510647,4.307148,2344.2,2344.1,2.66]
[1725933511234,4.307148,2344.2,2344.1,3.08653]
[1725933512250,0.42652,2344.2,2344.1,3.08653]
[1725933513846,0.42651,2344.3,2344.2,0.42652]
[1725933514460,0.4265,2344.3,2344.2,0.42652]
[1725933514743,1.1635,2344.4,2344.1,2.66]
[1725933514942,1.1635,2344.4,2343.9,41.5802]
[1725933514943,0.099,2344.8,2344.4,0.42648]
[1725933515147,1.21993,2344.7,2344.4,1.18828]
[1725933515648,0.42645,2344.6,2344.4,1.18828]
[1725933516146,0.3952,2344.7,2344.5,2.66]
[1725933516349,3.63137329,2345.0,2344.6,0.42644]
[1725933516350,0.6983,2345.0,2344.6,0.42644]
[1725933516645,0.6983,2345.0,2344.6,0.82004]
[1725933516646,0.3833,2344.9,2344.6,0.82004]
[1725933516839,0.3833,2344.9,2344.7,0.42642]
[1725933517244,0.3,2345.0,2344.8,2.66]
[1725933517451,0.3,2345.0,2344.9,1.19859]
[1725933517644,0.3,2345.0,2344.9,0.7722]
[1725933517853,0.3,2345.0,2344.9,0.3729]
[1725933520346,5.26713861,2345.0,2344.9,0.3729]
[1725933520546,5.26713861,2345.0,2344.8,2.66]
[1725933520749,0.3692,2344.9,2344.8,2.66]
[1725933520949,4.82042492,2344.9,2344.8,2.66]
[1725933521853,0.3692,2344.9,2344.8,2.66]
[1725933522044,0.7707,2344.9,2344.7,2.66]
[1725933522250,4.45045349,2344.8,2344.7,2.66]
[1725933522753,4.96713861,2344.8,2344.7,2.66]
[1725933524853,6.7161429,2344.9,2344.7,2.66]
[1725933525053,6.2897429,2344.9,2344.7,2.66]
[1725933525250,5.5190429,2344.8,2344.7,2.66]
[1725933525452,6.7161429,2344.9,2344.7,2.66]
[1725933526159,5.5190429,2344.8,2344.7,2.66]
[1725933526349,0.42647,2344.5,2344.2,4.465]
[1725933526551,0.42647,2344.5,2344.2,0.80951]
[1725933526552,5.6287414,2344.4,2344.2,0.80951]
[1725933526749,4.4496414,2344.3,2344.2,0.80951]
[1725933526958,6.18494657,2344.4,2344.2,0.80951]
[1725933527558,1.60559,2344.4,2344.1,0.42652]
[1725933527760,1.60559,2344.4,2344.0,0.42654]
[1725933527761,0.4265,2344.3,2344.0,0.42654]
[1725933527962,1.60559,2344.4,2344.1,0.42653]
[1725933528162,0.42651,2344.3,2343.9,43.8336]
[1725933528457,0.42653,2344.2,2343.9,43.8336]
[1725933528657,0.42653,2344.1,2343.9,44.26016]
[1725933528955,0.42653,2344.2,2343.9,44.26016]
[1725933529161,0.42654,2344.1,2343.9,40.8]
[1725933529354,0.42655,2344.0,2343.7,3.08659]
[1725933529551,0.81395,2344.0,2343.7,3.08659]
[1725933529855,1.45379,2344.0,2343.5,3.08663]
[1725933530061,0.4266,2343.8,2343.5,3.08663]
[1725933530260,0.42661,2343.7,2343.5,3.08663]
[1725933530659,0.3874,2343.6,2343.5,2.66]
[1725933530859,0.81404,2343.6,2343.4,45.30865]
[1725933531061,0.3874,2343.6,2343.4,45.30865]
[1725933531759,0.3874,2343.6,2343.5,0.42664]
[1725933532360,0.7419,2343.9,2343.5,2.66]
[1725933532561,0.7419,2343.9,2343.7,2.66]
[1725933532562,1.16848,2343.9,2343.7,2.66]
[1725933532762,0.79958,2343.9,2343.7,2.66]
[1725933533362,0.42659,2343.8,2343.7,2.66]
[1725933533562,4.69299,2343.8,2343.6,0.80171]
[1725933533762,0.42659,2343.8,2343.6,0.80171]
[1725933534361,0.42659,2343.8,2343.6,0.42661]
[1725933534869,0.42659,2343.8,2343.6,0.42662]
[1725933535269,0.373,2343.9,2343.5,2.66]
[1725933535468,0.42661,2343.7,2343.5,3.08664]
[1725933535857,0.374,2343.6,2343.5,3.08664]
[1725933536062,0.80062,2343.6,2343.5,2.66]
[1725933536263,0.80062,2343.6,2343.5,3.08664]
[1725933536668,4.6412,2343.6,2343.2,0.366]
[1725933536875,0.3776,2343.5,2343.3,0.42668]
[1725933537066,0.80425,2343.5,2343.4,40.8]
[1725933537869,0.80425,2343.5,2343.4,41.22666]
[1725933538269,0.80425,2343.5,2343.4,40.8]
[1725933538976,0.80064,2343.6,2343.4,41.22666]
[1725933540465,0.42664,2343.5,2343.4,41.22666]
[1725933541175,0.42664,2343.5,2343.4,40.8]
[1725933542677,0.80064,2343.6,2343.4,41.22665]
[1725933542872,0.42662,2343.7,2343.5,2.66]
[1725933543071,0.42662,2343.7,2343.5,3.08663]
[1725933544279,0.3867,2343.8,2343.5,2.66]
[1725933544578,0.42658,2343.9,2343.4,41.1921]
[1725933544579,0.42657,2344.0,2343.7,2.66]
[1725933544777,0.42657,2344.0,2343.8,0.80558]
[1725933545768,0.746,2344.1,2343.8,0.379]
[1725933546077,0.42656,2344.0,2343.8,0.80558]
[1725933546462,0.746,2344.1,2343.8,0.80558]
[1725933546667,0.42656,2344.0,2343.8,0.80558]
[1725933547164,0.746,2344.1,2343.8,0.379]
[1725933547165,0.42657,2343.9,2343.8,0.379]
[1725933548371,0.42657,2343.9,2343.8,0.80559]
[1725933549773,0.42657,2343.9,2343.7,2.66]
[1725933550076,0.42656,2344.0,2343.8,0.42658]
[1725933550267,0.42657,2343.9,2343.8,0.42658]
[1725933552278,0.42659,2343.8,2343.6,1.19491]
[1725933552470,0.42659,2343.8,2343.7,0.42661]
[1725933554281,0.42659,2343.9,2343.7,0.42661]
[1725933555174,0.42659,2343.8,2343.7,0.42661]
[1725933556881,0.42657,2343.9,2343.8,0.42658]
[1725933557173,0.42659,2343.8,2343.7,0.42659]
[1725933557678,1.81236,2344.1,2343.6,0.7683]
[1725933557679,0.42659,2343.9,2343.6,0.7683]
[1725933557980,0.42657,2343.9,2343.8,0.42659]
[1725933565473,1.43746,2344.1,2343.6,0.7683]
[1725933566084,0.42659,2343.9,2343.8,0.42658]
[1725933567382,1.06622,2344.4,2343.8,4.2664]
[1725933567584,1.44897,2344.3,2343.9,0.3659]
[1725933567779,1.44897,2344.3,2344.0,0.7587]
[1725933567978,0.42652,2344.2,2344.0,1.18524]
[1725933568482,0.80921,2344.3,2344.0,0.7587]
[1725933568685,0.3827,2344.3,2344.0,1.18525]
[1725933568879,0.80921,2344.3,2344.0,0.7587]
[1725933569078,0.80921,2344.3,2344.1,0.42653]
[1725933569490,0.80921,2344.3,2344.2,0.3843]
[1725933570684,0.42648,2344.5,2344.2,0.3843]
[1725933570887,0.42648,2344.5,2344.2,0.81081]
[1725933571080,0.81658,2344.5,2344.2,0.81081]
[1725933571586,0.81658,2344.5,2344.3,0.4265]
[1725933571785,0.81658,2344.5,2344.4,0.3701]
[1725933573082,0.3901,2344.5,2344.4,0.3701]
[1725933573287,0.81656,2344.5,2344.4,0.3701]
[1725933574886,0.3901,2344.5,2344.4,0.3701]
[1725933575091,0.81144,2344.7,2344.5,0.42646]
[1725933575385,0.81144,2344.7,2344.5,0.3913]
[1725933575583,0.81144,2344.7,2344.6,0.3681]
[1725933579100,4.473,2345.0,2344.6,4.6329]
[1725933579290,0.42642,2344.8,2344.6,0.79453]
[1725933580701,0.7967,2344.9,2344.7,0.42642]
[1725933580898,0.7967,2344.9,2344.8,0.3699]
[1725933583601,0.3703,2344.9,2344.8,0.79631]
[1725933583799,0.79669,2344.9,2344.8,0.79631]
[1725933584093,0.79669,2344.9,2344.8,0.3699]
[1725933584501,0.79669,2344.9,2344.8,0.79631]
[1725933584698,0.79669,2344.9,2344.8,0.3699]
[1725933586099,0.42639,2344.9,2344.8,0.3699]
[1725933586402,0.80049,2344.9,2344.8,0.79631]
[1725933586798,0.3741,2344.9,2344.6,0.79454]
[1725933586991,0.42642,2344.7,2344.6,0.3641]
[1725933587497,0.42642,2344.7,2344.5,0.81775]
[1725933587699,0.3741,2344.6,2344.5,0.3913]
[1725933588910,0.3741,2344.6,2344.5,0.81776]
[1725933590614,0.3741,2344.6,2344.4,0.7576]
[1725933590794,0.3741,2344.6,2344.4,0.3641]
[1725933591610,0.80055,2344.6,2344.4,0.79057]
[1725933592107,0.80055,2344.6,2344.4,2.02057]
[1725933592506,0.3741,2344.6,2344.4,1.5941]
[1725933592811,0.3741,2344.6,2344.5,0.42646]
[1725933593196,0.80054,2344.6,2344.4,2.02057]
[1725933596001,0.4265,2344.3,2344.2,40.8]
[1725933596802,1.2019,2344.3,2344.2,41.22652]
[1725933597104,0.7754,2344.3,2344.2,0.42652]
[1725933597304,0.3992,2344.3,2344.2,0.42652]
[1725933597901,0.8257,2344.3,2344.2,0.42652]
[1725933598498,0.8257,2344.3,2344.2,1.65652]
[1725933598909,0.3992,2344.3,2344.2,1.65652]
[1725933599599,0.8257,2344.3,2344.2,1.65652]
[1725933600407,0.42649,2344.4,2344.3,0.4265]
[1725933601002,1.20117,2344.5,2344.3,1.65649]
[1725933601202,0.82497,2344.5,2344.3,1.65649]
[1725933601410,0.3985,2344.5,2344.4,0.7847]
[1725933601613,3.44029146,2344.9,2344.4,0.7847]
[1725933601811,0.395,2344.8,2344.6,1.23]
[1725933602018,0.395,2344.8,2344.6,1.65643]
[1725933602019,0.82141,2344.8,2344.6,1.65643]
[1725933602306,0.395,2344.8,2344.7,0.3941]
[1725933602708,0.82141,2344.8,2344.7,0.3941]
[1725933603412,0.82141,2344.8,2344.5,1.6049]
[1725933603413,0.42643,2344.7,2344.5,1.6049]
[1725933603613,0.42646,2344.5,2344.4,0.3906]
[1725933603814,0.3947,2344.6,2344.1,42.83143]
[1725933604013,0.7821,2344.4,2344.2,0.42651]
[1725933604315,1.20858,2344.4,2344.2,0.3749]
[1725933604518,1.20858,2344.4,2344.2,0.80141]
[1725933606005,0.7821,2344.4,2344.3,0.4265]
[1725933606312,1.20859,2344.4,2344.2,0.42651]
[1725933606807,0.7821,2344.4,2344.1,40.8]
[1725933607212,0.42652,2344.2,2344.0,1.18705]
[1725933607711,0.42652,2344.2,2344.0,41.98705]
[1725933608514,0.4265,2344.3,2344.1,0.42652]
[1725933609609,1.20859,2344.4,2344.2,0.42651]
[1725933610116,0.82149,2344.4,2344.2,0.42651]
[1725933610908,0.42652,2344.2,2344.0,41.98704]
[1725933611107,0.42652,2344.2,2344.1,0.42653]
[1725933612304,0.42652,2344.2,2344.0,41.98704]
[1725933612504,0.42652,2344.2,2344.1,0.42653]
[1725933613720,0.42652,2344.3,2344.1,0.42653]
[1725933614218,0.42652,2344.2,2344.1,0.42652]
[1725933614814,0.42653,2344.1,2344.0,41.98705]
[1725933615015,0.20910251,2344.3,2343.5,2.66]
[1725933615206,0.20910251,2344.3,2343.7,0.4266]
[1725933615207,1.1853,2344.0,2343.7,0.4266]
[1725933615411,0.42658,2343.9,2343.8,0.42658]
[1725933615715,1.1853,2344.0,2343.9,0.42657]
[1725933615716,1.61186,2344.0,2343.9,0.42657]
[1725933616411,0.4008,2344.0,2343.9,0.42657]
[1725933616612,0.42654,2344.1,2344.0,0.42655]
[1725933616818,0.42654,2344.1,2344.0,1.19835]
[1725933617918,0.42653,2344.1,2344.0,1.19834]
[1725933618217,0.80413,2344.2,2344.0,1.57974]
[1725933618807,0.42653,2344.1,2344.0,1.57974]
[1725933619905,0.42653,2344.1,2344.0,0.7718]
[1725933620211,0.42653,2344.1,2344.0,0.3675]
[1725933620413,0.42657,2343.9,2343.8,0.7778]
[1725933620612,0.42657,2343.9,2343.7,3.08659]
[1725933620613,0.42657,2343.9,2343.7,3.45579]
[1725933620808,0.3689,2343.8,2343.7,3.45579]
[1725933621221,0.3689,2343.8,2343.7,7.72219]
[1725933621617,0.3689,2343.8,2343.7,0.79579]
[1725933622318,0.79549,2343.8,2343.7,0.79579]
[1725933622507,1.43539,2343.8,2343.5,3.77753585]
[1725933622711,0.42662,2343.7,2343.4,1.11753585]
[1725933622918,0.42662,2343.7,2343.6,0.42662]
[1725933623613,0.42662,2343.7,2343.5,41.22663]
[1725933623816,0.3689,2343.8,2343.5,41.22663]
[1725933624017,0.42661,2343.7,2343.5,41.22663]
[1725933624413,0.42661,2343.7,2343.6,0.42662]
[1725933624618,0.3689,2343.8,2343.5,40.8]
[1725933625211,0.42662,2343.7,2343.6,0.42662]
[1725933628425,0.3689,2343.8,2343.6,0.42662]
[1725933628633,0.099,2344.2,2343.9,0.42656]
[1725933628928,0.42656,2344.0,2343.7,3.7907]
[1725933629231,0.79435,2344.1,2343.9,0.42657]
[1725933629825,0.79435,2344.1,2343.7,3.7907]
[1725933629826,0.42655,2344.0,2343.8,0.42658]
[1725933630024,0.79435,2344.1,2343.8,0.42658]
[1725933630227,0.79435,2344.1,2343.9,0.42657]
[1725933630719,0.3678,2344.1,2344.0,0.42655]
[1725933631620,0.3678,2344.1,2343.9,0.42656]
[1725933631821,0.3678,2344.1,2344.0,0.42655]
[1725933632128,0.3678,2344.1,2343.7,3.7907]
[1725933632439,0.42658,2343.9,2343.7,1.17701]
[1725933633029,0.375,2343.8,2343.7,1.17701]
[1725933633423,0.375,2343.8,2343.7,5.44341]
[1725933633623,0.80159,2343.8,2343.7,0.3774]
[1725933633826,1.56529,2343.8,2343.6,0.42661]
[1725933634129,1.56529,2343.8,2343.5,41.5643]
[1725933634721,1.56529,2343.8,2343.6,0.42662]
[1725933634921,1.5653,2343.8,2343.5,41.59304]
[1725933635427,0.42661,2343.7,2343.5,41.59304]
[1725933636030,1.5653,2343.8,2343.6,0.42662]
[1725933637029,1.1387,2343.8,2343.5,41.1664]
[1725933637333,0.42661,2343.7,2343.5,41.59303]
[1725933637834,1.5653,2343.8,2343.6,0.42662]
[1725933638224,0.42661,2343.7,2343.5,41.59303]
[1725933638531,1.5653,2343.8,2343.5,41.59303]
[1725933639519,1.5653,2343.8,2343.6,0.42662]
[1725933642231,1.5653,2343.8,2343.6,0.42661]
[1725933642437,1.56529,2343.8,2343.6,0.42662]
[1725933645749,0.7634,2343.8,2343.7,0.42661]
[1725933646038,0.52553,2344.2,2343.7,1.23]
[1725933646341,0.52553,2344.2,2344.0,0.42655]
[1725933646342,0.3876,2344.1,2344.0,0.42655]
[1725933646641,0.7445,2344.3,2344.1,0.42653]
[1725933647433,0.3662,2344.3,2344.1,0.42653]
[1725933648234,0.7927,2344.3,2344.0,0.42654]
[1725933651152,0.7927,2344.3,2344.1,0.42653]
[1725933651751,0.7927,2344.3,2344.0,0.42654]
[1725933652156,0.7927,2344.3,2344.1,0.42653]
[1725933654063,0.42652,2344.2,2344.0,0.42654]
[1725933654555,0.3743,2344.1,2344.0,0.42654]
[1725933655155,0.3743,2344.1,2343.9,0.3649]
[1725933655367,0.7715,2344.1,2343.9,0.3649]
[1725933655566,0.3743,2344.1,2344.0,0.42655]
[1725933660657,0.3743,2344.1,2343.9,0.3649]
[1725933660863,0.3743,2344.1,2344.0,0.42655]
[1725933661060,0.3743,2344.1,2343.7,1.67630377]
[1725933661061,4.6407,2344.1,2343.7,1.11753585]
[1725933661263,0.42659,2343.8,2343.7,1.11753585]
[1725933661466,0.42659,2343.8,2343.6,1.90955585]
[1725933661665,0.7637,2343.7,2343.6,0.79202]
[1725933662366,0.3716,2343.7,2343.6,0.79202]
[1725933662668,0.3716,2343.7,2343.6,1.90955585]
[1725933664169,0.3716,2343.7,2343.6,0.79202]
[1725933664369,0.79821,2343.7,2343.6,0.3654]
[1725933664571,0.79821,2343.7,2343.5,1.54417585]
[1725933664972,0.79822,2343.7,2343.5,0.42664]
[1725933666373,0.42662,2343.6,2343.4,2.30838585]
[1725933666570,0.82872,2343.6,2343.4,2.30838585]
[1725933666870,0.82872,2343.6,2343.5,0.42664]
[1725933667665,0.4021,2343.6,2343.5,0.42664]
[1725933667871,0.82872,2343.6,2343.5,0.42664]
[1725933668969,0.82872,2343.6,2343.4,2.30838585]
[1725933669173,0.82872,2343.6,2343.5,0.42664]
[1725933669568,0.82872,2343.6,2343.4,1.19085]
[1725933669770,0.82872,2343.6,2343.4,0.7642]
[1725933670074,0.82872,2343.6,2343.3,42.31773585]
[1725933670075,0.42666,2343.4,2343.3,0.42667]
[1725933670279,0.3699,2343.5,2343.4,0.42666]
[1725933670581,0.79656,2343.5,2343.3,0.42667]
[1725933670874,0.81886,2343.4,2343.3,0.42667]
[1725933672276,0.81886,2343.4,2343.2,0.42669]
[1725933672666,0.4267,2343.2,2343.1,41.1912]
[1725933673063,0.4267,2343.2,2343.1,0.3912]
[1725933673870,0.42669,2343.3,2343.2,0.4267]
[1725933674071,0.4267,2343.2,2343.1,0.42671]
[1725933674979,0.42669,2343.3,2343.2,0.4267]
[1725933675474,0.42672,2343.1,2343.0,0.42673]
[1725933675686,0.42674,2343.0,2342.9,0.42674]
[1725933675975,1.06691,2342.9,2342.3,6.42953585]
[1725933676176,0.42681,2342.6,2342.5,0.42681]
[1725933676377,1.6124,2342.8,2342.4,0.81723]
[1725933676581,0.4021,2342.5,2342.4,0.81723]
[1725933679584,0.42685,2342.4,2342.0,5.57033585]
[1725933679887,0.3751,2342.4,2342.2,0.42688]